bitfinex-derivatives/quotes_ETHF0:USTF0_20250502
["timestamp","ask_amount","ask_price","bid_price","bid_amount"]
[1746193449576,1.08999,1834.3,1834.1,8.6401]
[1746193449788,1.08999,1834.3,1834.2,1.6271]
[1746193449980,1.08999,1834.3,1834.2,6.8871]
[1746193454991,1.08999,1834.3,1834.2,5.26]
[1746193458490,5.838,1834.6,1834.2,12.98497]
[1746193458688,1.08979,1834.6,1834.3,6.5354]
[1746193458887,1.08976,1834.7,1834.4,1.6842]
[1746193459087,1.08976,1834.7,1834.5,1.08981]
[1746193459287,1.08966,1834.8,1834.6,2.68252]
[1746193459487,1.08966,1834.8,1834.7,1.5928]
[1746193459689,1.08966,1834.8,1834.7,5.9228]
[1746193459888,1.08965,1834.8,1834.7,7.01251]
[1746193460089,4.79561,1834.9,1834.7,10.22026]
[1746193460393,1.08961,1834.9,1834.8,1.5928]
[1746193460595,1.08961,1834.9,1834.8,16.1862]
[1746193460797,1.08961,1834.9,1834.8,14.5428]
[1746193461892,1.08961,1834.9,1834.7,4.8512]
[1746193461893,1.08965,1834.8,1834.7,3.2078]
[1746193462089,2.66855,1834.8,1834.7,5.9478]
[1746193462898,4.42545,1834.8,1834.7,5.9478]
[1746193463291,3.705,1834.9,1834.7,5.9478]
[1746193463498,4.79459,1834.9,1834.8,1.6989]
[1746193463799,4.79459,1834.9,1834.8,5.7189]
[1746193463998,3.705,1834.9,1834.8,8.33445]
[1746193464201,3.705,1834.9,1834.8,13.59745]
[1746193464497,7.11565595,1835.2,1834.9,1.08956]
[1746193464691,1.08952,1835.1,1835.0,1.6989]
[1746193464891,1.08952,1835.1,1835.0,5.3689]
[1746193466794,1.08952,1835.1,1835.0,16.7089]
[1746193468999,1.08965,1834.8,1834.7,3.2078]
[1746193469197,1.08965,1834.8,1834.7,8.3164]
[1746193469394,1.08965,1834.8,1834.7,9.40611]
[1746193469604,1.08965,1834.8,1834.7,8.3164]
[1746193470311,1.08965,1834.8,1834.7,3.47]
[1746193470810,7.69755,1834.8,1834.7,3.47]
[1746193471211,11.39355,1834.8,1834.7,3.47]
[1746193471506,6.39355,1834.8,1834.7,3.47]
[1746193472107,2.69755,1834.8,1834.7,3.47]
[1746193475315,6.39355,1834.8,1834.7,3.47]
[1746193475809,11.39355,1834.8,1834.7,3.47]
[1746193476012,1.09001,1834.2,1834.1,1.5986]
[1746193476218,2.37001,1834.2,1834.1,2.1339]
[1746193476414,1.09001,1834.2,1834.1,2.1339]
[1746193476918,2.76171,1834.2,1834.1,2.1339]
[1746193477721,2.76171,1834.2,1834.1,0.47]
[1746193478219,6.45771,1834.2,1834.1,0.47]
[1746193480222,1.09001,1834.2,1834.1,0.47]
[1746193480610,1.09001,1834.2,1834.1,2.145]
[1746193481022,4.1486,1834.3,1834.1,3.23505]
[1746193481218,4.1486,1834.3,1834.2,1.675]
[1746193481219,1.09,1834.3,1834.2,1.675]
[1746193481420,1.09,1834.3,1834.2,7.3019]
[1746193482718,1.08995,1834.3,1834.2,8.39186]
[1746193482922,3.704,1834.4,1834.3,1.08995]
[1746193483125,4.7939,1834.4,1834.3,6.425]
[1746193483424,4.7939,1834.4,1834.3,7.51495]
[1746193483819,1.0899,1834.4,1834.3,10.72275]
[1746193484316,1.0899,1834.4,1834.3,9.6328]
[1746193484521,1.0899,1834.4,1834.3,6.425]
[1746193486425,1.0899,1834.4,1834.3,7.51495]
[1746193487028,1.0899,1834.4,1834.3,6.425]
[1746193488529,1.0899,1834.4,1834.3,7.51495]
[1746193489232,2.67978,1834.5,1834.4,1.08989]
[1746193489423,2.67978,1834.5,1834.4,13.9562]
[1746193489623,2.67978,1834.5,1834.4,15.04609]
[1746193489924,1.5899,1834.5,1834.4,15.04609]
[1746193490123,1.08983,1834.5,1834.4,15.04609]
[1746193490631,1.08983,1834.5,1834.4,13.9562]
[1746193490831,1.08983,1834.5,1834.4,15.04609]
[1746193491525,7.99428,1834.7,1834.4,13.9562]
[1746193491526,5.27,1834.7,1834.4,13.9562]
[1746193491722,3.702,1834.7,1834.6,1.08977]
[1746193491928,5.39140902,1835.0,1834.9,1.08959]
[1746193492234,5.39140902,1835.0,1834.9,5.65959]
[1746193492729,5.39140902,1835.0,1834.9,7.33859]
[1746193493127,5.39140902,1835.0,1834.9,11.03459]
[1746193494725,1.08948,1835.1,1835.0,1.08953]
[1746193494928,5.4477,1835.2,1835.1,1.08947]
[1746193494929,3.702,1835.2,1835.1,1.08947]
[1746193495124,3.702,1835.2,1835.1,8.21477]
[1746193495125,4.79141,1835.2,1835.1,8.21477]
[1746193495327,1.08941,1835.2,1835.1,9.89377]
[1746193496630,5.99036,1835.4,1835.2,1.08937]
[1746193496631,1.0894,1835.3,1835.2,1.08937]
[1746193496933,1.0894,1835.3,1835.2,12.16657]
[1746193497230,1.5214,1835.4,1835.2,11.0772]
[1746193497432,2.61072,1835.4,1835.3,1.6372]
[1746193497629,2.61072,1835.4,1835.3,6.9772]
[1746193497933,4.28672,1835.4,1835.3,8.06655]
[1746193498136,4.28672,1835.4,1835.3,5.34]
[1746193498533,4.28672,1835.4,1835.3,6.42935]
[1746193499031,4.28672,1835.4,1835.3,5.34]
[1746193500334,9.48075,1835.5,1835.4,1.08929]
[1746193500633,7.99805,1835.5,1835.4,5.2305]
[1746193500838,1.7573,1835.6,1835.5,1.08923]
[1746193501027,2.67584,1835.7,1835.5,7.35973]
[1746193501229,3.344,1835.7,1835.5,6.2705]
[1746193501427,4.43316,1835.7,1835.6,1.7105]
[1746193501627,4.43316,1835.7,1835.6,5.3705]
[1746193501836,4.43316,1835.7,1835.6,14.6705]
[1746193502131,2.67586,1835.7,1835.6,14.6705]
[1746193502328,9.09240902,1835.8,1835.7,1.08912]
[1746193502329,5.39140902,1835.8,1835.7,1.08912]
[1746193502532,5.39140902,1835.8,1835.7,8.44682]
[1746193502733,5.39140902,1835.8,1835.7,7.3577]
[1746193502932,5.39140902,1835.8,1835.7,8.44682]
[1746193503330,6.48046902,1835.8,1835.7,9.94342]
[1746193503528,5.39140902,1835.8,1835.7,9.94342]
[1746193503836,6.48046902,1835.8,1835.7,9.94342]
[1746193504634,1.08906,1835.8,1835.7,9.94342]
[1746193505033,1.08906,1835.8,1835.7,8.8543]
[1746193505336,1.08906,1835.8,1835.7,9.94342]
[1746193505634,1.08903,1835.9,1835.8,1.08901]
[1746193505834,5.39140902,1836.2,1835.8,23.01983]
[1746193506036,5.39140902,1836.2,1836.1,1.08888]
[1746193506236,5.39140902,1836.2,1836.1,8.22888]
[1746193506431,5.39140902,1836.2,1836.1,52.04308]
[1746193508938,5.39140902,1836.2,1836.1,66.38008]
[1746193509437,5.39140902,1836.2,1836.1,80.27008]
[1746193509841,5.39140902,1836.2,1836.1,75.27008]
[1746193510535,5.39140902,1836.2,1836.1,65.07008]
[1746193510743,6.48022902,1836.2,1836.1,55.44308]
[1746193510947,7.14180902,1836.2,1836.1,55.44308]
[1746193511744,8.23062902,1836.2,1836.1,55.44308]
[1746193513041,8.23785323,1836.2,1836.1,14.64308]
[1746193513339,8.23785323,1836.2,1836.1,12.1274]
[1746193513340,2.84644421,1836.2,1836.1,12.1274]
[1746193513540,2.84644421,1836.2,1836.1,10.54]
[1746193514443,0.00722421,1836.2,1836.1,11.62888]
[1746193514641,0.00722421,1836.2,1836.1,13.35718]
[1746193515937,1.09604421,1836.2,1836.1,13.35718]
[1746193516143,0.00722421,1836.2,1836.1,13.35718]
[1746193516443,1.09604421,1836.2,1836.1,13.35718]
[1746193516937,0.00722421,1836.2,1836.1,13.35718]
[1746193517133,1.09604421,1836.2,1836.1,13.35718]
[1746193517334,0.00722421,1836.2,1836.1,13.35718]
[1746193517744,1.09604421,1836.2,1836.1,13.35718]
[1746193518240,1.09604421,1836.2,1836.1,12.2683]
[1746193518544,1.08912,1835.7,1835.6,3.2278]
[1746193518737,1.08912,1835.7,1835.6,19.0478]
[1746193518939,6.08912,1835.7,1835.6,15.84]
[1746193519441,7.75412,1835.7,1835.6,15.84]
[1746193519844,8.19026583,1835.7,1835.6,15.84]
[1746193520043,7.75412,1835.7,1835.6,15.84]
[1746193520239,11.45012,1835.7,1835.6,15.84]
[1746193520443,6.45012,1835.7,1835.6,15.84]
[1746193521344,1.665,1835.7,1835.6,15.84]
[1746193521541,1.665,1835.7,1835.6,16.92918]
[1746193521747,1.4485,1836.0,1835.9,1.089]
[1746193521947,3.0717,1836.0,1835.9,4.889]
[1746193522351,5.20542421,1836.2,1836.1,1.08888]
[1746193522647,5.32442421,1836.2,1836.1,4.33888]
[1746193522846,2.71924421,1836.2,1836.1,4.33888]
[1746193523248,1.63042421,1836.2,1836.1,4.33888]
[1746193523443,2.71924421,1836.2,1836.1,4.33888]
[1746193523639,2.71924421,1836.2,1836.1,3.25]
[1746193524242,1.08894,1836.0,1835.9,3.2078]
[1746193524442,1.08912,1835.7,1835.6,5.932]
[1746193524751,4.79207421,1836.2,1836.0,1.0889]
[1746193524943,4.79207421,1836.2,1836.1,3.2078]
[1746193525143,1.09607421,1836.2,1836.1,8.2878]
[1746193525646,1.09607421,1836.2,1836.1,5.08]
[1746193526644,0.00722421,1836.2,1836.1,6.16888]
[1746193527046,0.00722421,1836.2,1836.1,7.77758]
[1746193527247,1.09604421,1836.2,1836.1,6.6887]
[1746193527655,1.09604421,1836.2,1836.1,5.08]
[1746193528248,4.79204421,1836.2,1836.1,5.08]
[1746193528640,3.70322421,1836.2,1836.1,5.08]
[1746193528846,3.70322421,1836.2,1836.1,6.16888]
[1746193529148,2.65724,1836.6,1836.5,1.08864]
[1746193529345,3.694,1836.9,1836.8,1.08846]
[1746193529346,1.52,1836.9,1836.8,1.08846]
[1746193529547,1.5686,1837.2,1836.9,1.08835]
[1746193529749,1.5686,1837.2,1836.7,3.2078]
[1746193529750,1.0884,1836.9,1836.7,3.2078]
[1746193530047,1.0884,1836.9,1836.8,1.08846]
[1746193530244,4.28919,1837.2,1836.8,5.61846]
[1746193530448,1.0884,1836.9,1836.8,46.41846]
[1746193530646,1.0884,1836.9,1836.8,7.7378]
[1746193531448,1.0884,1836.9,1836.8,17.6578]
[1746193531850,1.0884,1836.9,1836.8,14.45]
[1746193532245,2.72087,1837.0,1836.5,7.02062]
[1746193532449,2.72087,1837.0,1836.5,8.84942]
[1746193532450,1.08858,1836.6,1836.5,8.84942]
[1746193532646,1.08858,1836.6,1836.5,49.64942]
[1746193532950,1.08855,1836.7,1836.6,1.08856]
[1746193533146,1.08845,1836.9,1836.8,1.08845]
[1746193533353,1.08839,1837.0,1836.9,1.08839]
[1746193533552,1.08839,1837.0,1836.9,7.5008]
[1746193534056,1.08839,1837.0,1836.9,16.9508]
[1746193534249,1.08839,1837.0,1836.9,15.25]
[1746193534455,1.0884,1836.9,1836.8,3.2078]
[1746193534757,1.0884,1836.9,1836.8,8.0578]
[1746193535252,1.0884,1836.9,1836.8,9.14626]
[1746193535756,1.0884,1836.9,1836.8,8.0578]
[1746193535954,1.0884,1836.9,1836.8,9.14626]
[1746193537047,1.0884,1836.9,1836.8,18.84626]
[1746193537253,1.0884,1836.9,1836.8,14.55]
[1746193537454,1.0884,1836.9,1836.8,2.08]
[1746193537650,1.0884,1836.9,1836.8,3.16841]
[1746193537856,1.0884,1836.9,1836.8,2.08]
[1746193538358,9.7844,1836.9,1836.8,2.08]
[1746193539057,3.696,1836.9,1836.8,3.16846]
[1746193539255,3.696,1836.9,1836.8,12.98846]
[1746193539754,3.696,1836.9,1836.8,14.60476]
[1746193540258,2.82065,1837.0,1836.9,1.0884]
[1746193540450,2.82065,1837.0,1836.9,12.8584]
[1746193542153,6.51665,1837.0,1836.9,11.77]
[1746193543158,6.51665,1837.0,1836.9,12.8584]
[1746193543551,5.4283,1837.0,1836.9,12.8584]
[1746193544261,3.696,1837.0,1836.9,12.8584]
[1746193544657,3.696,1837.0,1836.9,16.0662]
[1746193544964,3.696,1837.0,1836.9,17.5483]
[1746193545163,2.67685,1837.2,1837.1,1.08829]
[1746193545459,2.67685,1837.2,1837.1,6.02829]
[1746193546162,1.5886,1837.2,1837.1,6.02829]
[1746193546462,2.67683,1837.2,1837.1,6.02829]
[1746193546657,1.5886,1837.2,1837.1,6.02829]
[1746193547267,2.67683,1837.2,1837.1,6.02829]
[1746193547558,2.67683,1837.2,1837.1,4.94]
[1746193547961,2.67683,1837.2,1837.1,6.02829]
[1746193548357,1.5886,1837.2,1837.1,6.02829]
[1746193548555,2.6082,1837.3,1837.2,1.08823]
[1746193548753,4.1923,1837.3,1837.2,10.44823]
[1746193548959,4.1923,1837.3,1837.2,9.36]
[1746193549166,7.8883,1837.3,1837.2,9.36]
[1746193550060,11.0961,1837.3,1837.2,9.36]
[1746193550365,16.0961,1837.3,1837.2,9.36]
[1746193550570,7.8883,1837.3,1837.2,9.36]
[1746193550772,7.8883,1837.3,1837.2,10.44823]
[1746193551270,4.1923,1837.3,1837.2,10.44823]
[1746193551667,3.1041,1837.3,1837.2,10.44823]
[1746193551972,4.19227,1837.3,1837.2,9.36]
[1746193552170,7.88827,1837.3,1837.2,9.36]
[1746193556273,6.36827,1837.3,1837.2,9.36]
[1746193556463,6.36827,1837.3,1837.2,11.1181]
[1746193557375,2.67227,1837.3,1837.2,11.1181]
[1746193557573,2.67227,1837.3,1837.2,12.20633]
[1746193557875,2.67227,1837.3,1837.2,11.1181]
[1746193559781,2.67227,1837.3,1837.2,9.36]
[1746193560074,7.98307,1837.3,1837.2,9.36]
[1746193560874,5.2801,1837.3,1837.2,9.36]
[1746193561173,1.08817,1837.3,1837.2,10.99]
[1746193561565,1.08817,1837.3,1837.2,9.36]
[1746193561768,2.75137,1837.3,1837.2,9.36]
[1746193562277,14.65517,1837.3,1837.2,9.35277579]
[1746193562670,9.65517,1837.3,1837.2,9.35277579]
[1746193563600,1.08846,1836.8,1836.7,3.2078]
[1746193563795,1.08846,1836.8,1836.7,2.83]
[1746193563990,10.10626,1836.8,1836.7,1.45724]
[1746193564193,1.08876,1836.3,1836.2,7.20377546]
[1746193564502,3.69,1836.3,1836.2,11.54259546]
[1746193564699,3.69,1836.3,1836.2,13.19599546]
[1746193565201,4.77876,1836.3,1836.2,12.10717546]
[1746193565396,4.77876,1836.3,1836.2,13.19599546]
[1746193565397,3.69,1836.3,1836.2,13.19599546]
[1746193565903,1.08876,1836.3,1836.2,12.10717546]
[1746193566198,6.37616,1836.3,1836.2,10.45377546]
[1746193566499,6.37616,1836.3,1836.2,11.54259546]
[1746193566701,4.78476,1836.3,1836.2,10.45377546]
[1746193566903,6.37616,1836.3,1836.2,10.45377546]
[1746193567197,11.69926,1836.3,1836.2,3.25]
[1746193567902,14.90706,1836.3,1836.2,3.25]
[1746193568296,19.90706,1836.3,1836.2,3.25]
[1746193568497,14.90706,1836.3,1836.2,3.25]
[1746193569502,1.08928,1835.5,1835.3,7.22377546]
[1746193569802,1.08929,1835.4,1835.3,15.54377546]
[1746193570004,1.08929,1835.4,1835.3,8.34]
[1746193570005,2.72669,1835.4,1835.3,8.34]
[1746193571198,9.63049,1835.4,1835.3,8.34]
[1746193571403,6.42269,1835.4,1835.3,8.34]
[1746193572106,9.63049,1835.4,1835.3,8.34]
[1746193573314,6.42269,1835.4,1835.3,8.34]
[1746193573514,5.3334,1835.4,1835.3,8.34]
[1746193573715,6.42269,1835.4,1835.3,8.34]
[1746193574109,2.72669,1835.4,1835.3,8.34]
[1746193574615,1.08929,1835.4,1835.3,8.34]
[1746193574815,2.77719,1835.4,1835.3,8.34]
[1746193575917,1.08929,1835.4,1835.3,8.34]
[1746193576307,4.22068,1835.8,1835.5,1.08923]
[1746193576509,3.59152983,1835.9,1835.6,1.7353]
[1746193576715,3.59152983,1835.9,1835.6,9.8453]
[1746193577019,1.08905,1835.9,1835.6,9.8453]
[1746193577317,6.8978,1836.0,1835.8,1.08906]
[1746193577318,4.77897,1836.0,1835.8,1.08906]
[1746193577516,4.77897,1836.0,1835.9,1.7353]
[1746193577715,4.77897,1836.0,1835.9,5.7853]
[1746193578511,3.69,1836.0,1835.9,5.7853]
[1746193578714,4.77894,1836.0,1835.9,5.7853]
[1746193578908,3.69,1836.0,1835.9,6.8743]
[1746193579615,6.79932983,1836.2,1836.0,1.08892]
[1746193579817,3.59152983,1836.2,1836.1,5.95408]
[1746193580023,3.59152983,1836.2,1836.1,13.69258]
[1746193580321,1.08865,1836.5,1836.4,1.08866]
[1746193580322,1.08866,1836.5,1836.4,1.08866]
[1746193580619,1.08861,1836.6,1836.5,1.08861]
[1746193580817,1.08861,1836.6,1836.5,5.91861]
[1746193581018,1.08854,1836.7,1836.6,1.08855]
[1746193581218,1.0885,1836.8,1836.7,1.08851]
[1746193581418,1.0885,1836.8,1836.7,7.64591]
[1746193581612,1.08845,1836.9,1836.8,1.08846]
[1746193581814,1.08845,1836.9,1836.8,3.74]
[1746193582230,8.36215311,1837.0,1836.8,4.82846]
[1746193582419,8.36215311,1837.0,1836.9,1.0884]
[1746193582724,3.58377311,1837.0,1836.9,5.9384]
[1746193582931,3.689,1837.4,1837.1,1.08825]
[1746193583120,1.08822,1837.3,1837.2,3.2078]
[1746193583321,1.08822,1837.3,1837.2,8.2878]
[1746193584028,3.689,1837.4,1837.2,9.37599]
[1746193584218,1.08817,1837.3,1837.2,8.2878]
[1746193584627,4.77715,1837.4,1837.2,8.2878]
[1746193584827,1.08815,1837.4,1837.2,9.37602]
[1746193585418,1.08817,1837.3,1837.2,9.37602]
[1746193585725,1.08817,1837.3,1837.2,8.2878]
[1746193586224,1.08814,1837.4,1837.2,9.37601]
[1746193586723,1.08814,1837.4,1837.3,3.2078]
[1746193586925,9.29594,1837.4,1837.3,3.6]
[1746193587121,9.78414,1837.4,1837.3,3.6]
[1746193587421,11.37574,1837.4,1837.3,3.6]
[1746193587821,9.58354,1837.4,1837.3,3.6]
[1746193588030,5.2876,1837.4,1837.3,3.6]
[1746193588619,5.2876,1837.4,1837.3,4.68817]
[1746193589125,1.5916,1837.4,1837.3,4.68817]
[1746193590031,2.67971,1837.4,1837.3,3.6]
[1746193590523,1.08802,1837.6,1837.4,1.08809]
[1746193590719,1.08805,1837.5,1837.4,3.51]
[1746193591131,2.71845,1837.5,1837.4,3.51]
[1746193592329,5.3264,1837.5,1837.4,3.51]
[1746193592631,6.41445,1837.5,1837.4,3.51]
[1746193593124,3.688,1837.6,1837.4,4.59811]
[1746193593431,1.08805,1837.5,1837.4,3.51]
[1746193593829,4.77603,1837.6,1837.4,4.59811]
[1746193594025,4.77603,1837.6,1837.4,3.51]
[1746193594333,3.688,1837.6,1837.4,4.59806]
[1746193594631,1.08805,1837.5,1837.4,4.59806]
[1746193594827,1.08805,1837.5,1837.4,3.51]
[1746193595024,2.69995,1837.5,1837.4,3.51]
[1746193595823,1.6119,1837.5,1837.4,4.59811]
[1746193596027,4.77603,1837.6,1837.5,1.08805]
[1746193596230,4.77603,1837.6,1837.5,4.03]
[1746193597238,8.47203,1837.6,1837.5,4.03]
[1746193599725,20.63003,1837.6,1837.5,0.14811136]
[1746193599929,1.08832,1837.1,1837.0,1.08835]
[1746193600233,1.08832,1837.1,1837.0,6.41455]
[1746193600639,1.08832,1837.1,1837.0,5.3262]
[1746193600834,1.08832,1837.1,1837.0,3.74]
[1746193601241,4.78432,1837.1,1837.0,3.74]
[1746193601639,3.696,1837.1,1837.0,3.74]
[1746193601941,4.78429,1837.1,1837.0,3.74]
[1746193602139,2.76489,1837.1,1837.0,3.74]
[1746193602843,2.76489,1837.1,1837.0,4.82835]
[1746193603444,1.6766,1837.1,1837.0,4.82835]
[1746193603629,2.76489,1837.1,1837.0,4.82835]
[1746193604541,2.76489,1837.1,1837.0,3.74]
[1746193604753,2.76489,1837.1,1837.0,4.82835]
[1746193604953,2.76489,1837.1,1837.0,5.4205]
[1746193605559,2.76489,1837.1,1837.0,3.74]
[1746193607249,6.46089,1837.1,1837.0,4.82835]
[1746193607453,5.3726,1837.1,1837.0,4.82835]
[1746193607651,3.696,1837.1,1837.0,4.82835]
[1746193607850,1.5555,1837.4,1837.3,1.08817]
[1746193607851,1.08813,1837.4,1837.3,1.08817]
[1746193608051,1.08813,1837.4,1837.3,4.88817]
[1746193608751,4.28028,1837.5,1837.4,1.08811]
[1746193609062,4.77405,1837.6,1837.5,1.08805]
[1746193609265,6.46955,1837.6,1837.5,5.17805]
[1746193609555,6.46955,1837.6,1837.5,4.09]
[1746193609757,6.46955,1837.6,1837.5,5.17805]
[1746193610052,6.46955,1837.6,1837.5,4.09]
[1746193610556,6.46955,1837.6,1837.5,5.17805]
[1746193611057,4.78398,1837.7,1837.6,1.08799]
[1746193611253,1.08798,1837.7,1837.6,5.2577]
[1746193611560,1.08798,1837.7,1837.6,3.55]
[1746193611761,2.84598,1837.7,1837.6,3.55]
[1746193611955,7.84598,1837.7,1837.6,3.55]
[1746193612161,6.54198,1837.7,1837.6,3.55]
[1746193612760,9.74978,1837.7,1837.6,3.55]
[1746193613061,18.43478,1837.7,1837.6,3.55]
[1746193614459,1.08826,1837.2,1837.0,4.13834]
[1746193614657,1.0882,1837.3,1837.1,1.08829]
[1746193614960,2.7739,1837.3,1837.2,1.7571]
[1746193615261,6.4699,1837.3,1837.2,5.04]
[1746193615459,4.7842,1837.3,1837.2,5.04]
[1746193615960,6.4699,1837.3,1837.2,5.04]
[1746193616362,5.3817,1837.3,1837.2,6.12823]
[1746193616557,3.696,1837.3,1837.2,6.12823]
[1746193616961,3.696,1837.3,1837.2,9.33603]
[1746193617559,3.696,1837.3,1837.2,14.33603]
[1746193617772,4.78417,1837.3,1837.2,14.33603]
[1746193618268,1.08817,1837.3,1837.2,14.33603]
[1746193618469,1.08814,1837.4,1837.3,1.0881]
[1746193618663,1.08814,1837.4,1837.3,7.7763]
[1746193619171,4.78414,1837.4,1837.3,7.77637]
[1746193621359,4.78414,1837.4,1837.3,6.6882]
[1746193621563,4.78414,1837.4,1837.3,7.77637]
[1746193622264,9.78414,1837.4,1837.3,4.98]
[1746193622573,16.67691,1837.4,1837.3,0.73]
[1746193622968,20.00831,1837.4,1837.3,0.73]
[1746193623573,1.0885,1836.8,1836.4,9.92550546]
[1746193623762,1.0885,1836.8,1836.7,1.08852]
[1746193623966,4.77345,1836.9,1836.7,3.95852]
[1746193624172,3.696,1836.8,1836.7,3.95852]
[1746193625275,4.77344,1836.9,1836.8,1.08846]
[1746193625468,4.77344,1836.9,1836.8,9.32786]
[1746193625773,4.77344,1836.9,1836.8,8.2394]
[1746193625976,18.81924,1836.9,1836.8,3.89573156]
[1746193626166,1.08864,1836.5,1836.4,7.20377546]
[1746193626476,21.62944,1836.5,1836.4,7.20377546]
[1746193626674,18.81944,1836.5,1836.4,7.52377546]
[1746193626874,1.0887,1836.4,1836.3,10.80566319]
[1746193627071,6.9267,1836.4,1836.3,6.85049476]
[1746193627277,1.08876,1836.3,1836.2,14.40755092]
[1746193627476,5.04656,1836.3,1836.2,14.40755092]
[1746193627673,10.04656,1836.3,1836.2,7.29097067]
[1746193627878,10.04656,1836.3,1836.2,7.25097067]
[1746193628176,13.74256,1836.3,1836.2,7.46097067]
[1746193628376,13.74256,1836.3,1836.2,6.02218067]
[1746193628678,1.08882,1836.2,1836.1,10.87645601]
[1746193628879,1.08894,1836.0,1835.9,14.40755092]
[1746193629072,1.08894,1836.0,1835.9,14.90755092]
[1746193629073,10.17474,1836.0,1835.9,14.90755092]
[1746193629280,15.17474,1836.0,1835.9,13.80548092]
[1746193629583,9.33674,1836.0,1835.9,1.09597406]
[1746193629779,1.089,1835.9,1835.8,17.78214271]
[1746193630074,6.203,1835.9,1835.8,17.78214271]
[1746193630278,11.203,1835.9,1835.8,17.78214271]
[1746193630581,11.203,1835.9,1835.8,17.80214271]
[1746193631174,14.899,1835.9,1835.8,17.80214271]
[1746193631375,13.469,1835.9,1835.8,17.80214271]
[1746193632583,19.307,1835.9,1835.8,16.03820271]
[1746193632783,20.6603,1835.9,1835.8,6.60260736]
[1746193632980,1.08912,1835.7,1835.6,34.38888546]
[1746193633187,5.76692,1835.7,1835.6,33.95272801]
[1746193633379,10.76692,1835.7,1835.6,22.80838187]
[1746193633581,10.76692,1835.7,1835.6,17.1670088]
[1746193633786,10.76692,1835.7,1835.6,10.71685573]
[1746193633984,10.76692,1835.7,1835.6,7.99277266]
[1746193634280,1.98452692,1835.5,1835.4,25.21321412]
[1746193634485,13.82103,1835.5,1835.4,25.27321412]
[1746193635179,17.51703,1835.5,1835.4,25.27321412]
[1746193635574,22.73703,1835.5,1835.4,24.10420412]
[1746193636180,22.73703,1835.5,1835.4,18.64746105]
[1746193636484,22.75703,1835.5,1835.4,12.81238798]
[1746193636785,22.75703,1835.5,1835.4,11.49812798]
[1746193636988,22.75703,1835.5,1835.4,8.66015798]
[1746193637579,22.75703,1835.5,1835.4,7.49859798]
[1746193637784,22.75703,1835.5,1835.4,6.32533798]
[1746193637981,22.75703,1835.5,1835.4,3.75173798]
[1746193638495,1.08929,1835.4,1835.3,27.68056185]
[1746193638791,1.08959,1834.9,1834.8,1.6985]
[1746193639087,4.77659,1834.9,1834.8,20.6785]
[1746193639289,4.77659,1834.9,1834.8,25.6785]
[1746193639483,3.687,1834.9,1834.8,25.6785]
[1746193639890,3.687,1834.9,1834.8,21.76815]
[1746193640084,3.687,1834.9,1834.8,26.76815]
[1746193640284,7.383,1834.9,1834.8,26.76815]
[1746193641196,3.687,1834.9,1834.8,26.76815]
[1746193642789,9.0458,1835.1,1835.0,1.08953]
[1746193642991,5.838,1835.1,1835.0,25.24953]
[1746193643190,5.838,1835.1,1835.0,19.16]
[1746193643388,6.92747,1835.1,1835.0,20.7806]
[1746193643588,10.13527,1835.1,1835.0,20.7806]
[1746193643784,11.84517,1835.1,1835.0,20.7806]
[1746193644289,15.54117,1835.1,1835.0,20.7806]
[1746193644689,13.83127,1835.1,1835.0,20.7806]
[1746193645590,13.83127,1835.1,1835.0,13.83197403]
[1746193646794,18.83127,1835.1,1835.0,12.21137403]
[1746193647001,1.08971,1834.7,1834.6,1.7563]
[1746193647199,12.27703519,1834.7,1834.6,6.7463]
[1746193647396,1.08989,1834.4,1834.3,3.1688]
[1746193647594,7.98569,1834.4,1834.3,23.018]
[1746193647790,2.725,1834.3,1833.9,1.5171]
[1746193647994,1.09012,1834.1,1834.0,1.6938]
[1746193648294,4.77812,1834.1,1834.0,22.0738]
[1746193649099,8.47412,1834.1,1834.0,22.0738]
[1746193649394,8.47407,1834.1,1834.0,22.0738]
[1746193649600,7.384,1834.1,1834.0,22.0738]
[1746193649897,1.1906,1834.1,1834.0,28.16393]
[1746193650096,5.838,1834.3,1834.0,27.0738]
[1746193650293,1.09002,1834.2,1834.0,22.0738]
[1746193650501,6.92798,1834.3,1834.0,23.16389]
[1746193650694,5.838,1834.3,1834.0,22.0738]
[1746193650895,6.92797,1834.3,1834.0,23.16389]
[1746193651396,4.77901,1834.2,1834.0,22.0738]
[1746193651601,1.09007,1834.1,1834.0,22.0738]
[1746193651899,10.13587,1834.1,1834.0,22.0738]
[1746193652101,10.13587,1834.1,1834.0,11.4338]
[1746193652301,13.83187,1834.1,1834.0,11.4338]
[1746193652803,12.7418,1834.1,1834.0,11.4338]
[1746193653093,13.83187,1834.1,1834.0,11.4338]
[1746193653299,9.0458,1834.1,1834.0,11.4338]
[1746193653498,10.13587,1834.1,1834.0,11.4338]
[1746193653887,10.13587,1834.1,1834.0,7.26291612]
[1746193654093,15.47157,1834.1,1834.0,7.26291612]
[1746193654600,13.83187,1834.1,1834.0,7.26291612]
[1746193654801,12.7418,1834.1,1834.0,8.35304612]
[1746193655199,9.0458,1834.1,1833.9,2.71355]
[1746193655401,5.838,1834.1,1834.0,1.09013]
[1746193655601,3.689,1834.4,1834.3,1.08993]
[1746193655794,3.689,1834.4,1834.3,4.70993]